[Event "Late-Titled-Tuesday-Blitz-September-12-2023"]
[Site "Chess.com"]
[Date "2023.09.12"]
[Round "1"]
[White "ilya2700"]
[Black "2k28Lakers"]
[Result "1-0"]
[WhiteElo "2279"]
[BlackElo "2541"]
[TimeControl "180+1"]
[EndTime "14:05:32 PDT"]
[Termination "ilya2700 won by resignation"]

1. c4 {[%clk 0:02:58]} 1... c6 {[%clk 0:02:58.3]} 2. d4 {[%clk 0:02:57.2]} 2...
d5 {[%clk 0:02:58.9]} 3. Nc3 {[%clk 0:02:57.8]} 3... e6 {[%clk 0:02:58.4]} 4. e3
{[%clk 0:02:58.3]} 4... Nf6 {[%clk 0:02:57.8]} 5. Nf3 {[%clk 0:02:58.4]} 5...
Nbd7 {[%clk 0:02:57.6]} 6. Qc2 {[%clk 0:02:58.6]} 6... Bd6 {[%clk 0:02:56.3]} 7.
b3 {[%clk 0:02:57.6]} 7... O-O {[%clk 0:02:55.7]} 8. Be2 {[%clk 0:02:56.5]} 8...
b6 {[%clk 0:02:56]} 9. Bb2 {[%clk 0:02:56.3]} 9... Bb7 {[%clk 0:02:56.4]} 10.
O-O {[%clk 0:02:56.9]} 10... Qe7 {[%clk 0:02:56.8]} 11. Rad1 {[%clk 0:02:57]}
11... Rac8 {[%clk 0:02:56.7]} 12. Qb1 {[%clk 0:02:56.1]} 12... dxc4 {[%clk
0:02:32]} 13. bxc4 {[%clk 0:02:51.2]} 13... c5 {[%clk 0:02:32]} 14. d5 {[%clk
0:02:47.1]} 14... exd5 {[%clk 0:02:31.5]} 15. cxd5 {[%clk 0:02:45.9]} 15... a6
{[%clk 0:02:28.2]} 16. a4 {[%clk 0:02:43]} 16... Ne5 {[%clk 0:02:20.2]} 17. Nh4
{[%clk 0:02:39.1]} 17... Neg4 {[%clk 0:02:05.7]} 18. g3 {[%clk 0:02:32.4]} 18...
Nxe3 {[%clk 0:01:39.1]} 19. fxe3 {[%clk 0:02:26.3]} 19... Qxe3+ {[%clk 0:01:40]}
20. Rf2 {[%clk 0:02:06.6]} 20... Be5 {[%clk 0:01:15.2]} 21. Nf5 {[%clk 0:01:59]}
21... Qg5 {[%clk 0:01:14]} 22. h4 {[%clk 0:01:52]} 22... Qg6 {[%clk 0:00:35.7]}
23. Ne7+ {[%clk 0:01:50.7]} 23... Kh8 {[%clk 0:00:36.4]} 24. Nxg6+ {[%clk
0:01:51.6]} 24... hxg6 {[%clk 0:00:35.2]} 25. Kh2 {[%clk 0:01:42.3]} 25... Rcd8
{[%clk 0:00:31.6]} 26. Bf3 {[%clk 0:01:41.9]} 26... Bc8 {[%clk 0:00:31]} 27. Ne4
{[%clk 0:01:38.9]} 27... Bxb2 {[%clk 0:00:25.7]} 28. Qxb2 {[%clk 0:01:36.2]}
28... Nxd5 {[%clk 0:00:26.3]} 29. Rfd2 {[%clk 0:01:31.1]} 29... Bb7 {[%clk
0:00:26.8]} 30. Ng5 {[%clk 0:01:28.3]} 30... c4 {[%clk 0:00:27.1]} 31. Bxd5
{[%clk 0:01:24.6]} 31... c3 {[%clk 0:00:27.3]} 32. Qxc3 {[%clk 0:01:24.1]} 1-0

[Event "Late-Titled-Tuesday-Blitz-September-12-2023"]
[Site "Chess.com"]
[Date "2023.09.12"]
[Round "1"]
[White "Keaton87"]
[Black "YellowJacek"]
[Result "1-0"]
[WhiteElo "2627"]
[BlackElo "2321"]
[TimeControl "180+1"]
[EndTime "14:05:40 PDT"]
[Termination "Keaton87 won by resignation"]

1. e4 {[%clk 0:02:59]} 1... e5 {[%clk 0:02:52]} 2. Ke2 {[%clk 0:02:59.9]} 2...
Nf6 {[%clk 0:02:48.3]} 3. d3 {[%clk 0:02:59.5]} 3... Nc6 {[%clk 0:02:46]} 4. c3
{[%clk 0:02:58.8]} 4... d5 {[%clk 0:02:45.9]} 5. Nd2 {[%clk 0:02:55.4]} 5...
Bg4+ {[%clk 0:02:43.9]} 6. f3 {[%clk 0:02:55.2]} 6... Be6 {[%clk 0:02:43.2]} 7.
g3 {[%clk 0:02:54.4]} 7... Bc5 {[%clk 0:02:41.3]} 8. Bg2 {[%clk 0:02:53.8]} 8...
Qd7 {[%clk 0:02:29.6]} 9. Kf1 {[%clk 0:02:52.8]} 9... O-O-O {[%clk 0:02:28]} 10.
Ne2 {[%clk 0:02:49.5]} 10... dxe4 {[%clk 0:02:23.9]} 11. dxe4 {[%clk 0:02:49]}
11... h5 {[%clk 0:02:14.8]} 12. Qc2 {[%clk 0:02:46.9]} 12... h4 {[%clk
0:02:13.6]} 13. gxh4 {[%clk 0:02:39.6]} 13... Rxh4 {[%clk 0:02:10.4]} 14. Nb3
{[%clk 0:02:39.4]} 14... Bb6 {[%clk 0:02:09.1]} 15. Bg5 {[%clk 0:02:39.1]} 15...
Rh5 {[%clk 0:01:58.7]} 16. h4 {[%clk 0:02:38.3]} 16... Rdh8 {[%clk 0:01:56.7]}
17. Ng3 {[%clk 0:02:33.5]} 17... R5h7 {[%clk 0:01:54.8]} 18. Rd1 {[%clk
0:02:30.6]} 18... Bc4+ {[%clk 0:01:53]} 19. Ke1 {[%clk 0:02:28.7]} 19... Qe7
{[%clk 0:01:53.1]} 20. Nf5 {[%clk 0:02:28.4]} 20... Qf8 {[%clk 0:01:50.6]} 21.
Bf1 {[%clk 0:02:21.3]} 21... Be6 {[%clk 0:01:49]} 22. Bb5 {[%clk 0:02:20.3]}
22... Nh5 {[%clk 0:01:40.3]} 23. Bxc6 {[%clk 0:02:01.1]} 23... bxc6 {[%clk
0:01:41.2]} 24. Qd3 {[%clk 0:02:00.4]} 24... f6 {[%clk 0:01:31.2]} 25. Be3
{[%clk 0:01:59.2]} 25... Nf4 {[%clk 0:01:22.1]} 26. Qa6+ {[%clk 0:01:56.2]}
26... Kb8 {[%clk 0:01:21.1]} 27. Na5 {[%clk 0:01:56.5]} 27... Bc8 {[%clk
0:01:13.9]} 28. Nxc6+ {[%clk 0:01:43.7]} 28... Ka8 {[%clk 0:01:12.7]} 29. Qb5
{[%clk 0:01:38]} 29... Ng2+ {[%clk 0:01:09.8]} 30. Ke2 {[%clk 0:01:35.8]} 30...
Nxe3 {[%clk 0:01:06.5]} 31. Nxe3 {[%clk 0:01:35.8]} 31... Rxh4 {[%clk
0:01:02.2]} 32. Rxh4 {[%clk 0:01:35]} 32... Rxh4 {[%clk 0:01:02.7]} 33. Rd8
{[%clk 0:01:32]} 33... Rh2+ {[%clk 0:01:02.1]} 34. Kd3 {[%clk 0:01:28.4]} 34...
Qxd8+ {[%clk 0:00:33.3]} 35. Nxd8 {[%clk 0:01:28.1]} 1-0

[Event "Late-Titled-Tuesday-Blitz-September-12-2023"]
[Site "Chess.com"]
[Date "2023.09.12"]
[Round "1"]
[White "kacprekt"]
[Black "LevonAronian"]
[Result "0-1"]
[WhiteElo "2501"]
[BlackElo "3065"]
[TimeControl "180+1"]
[EndTime "14:05:49 PDT"]
[Termination "LevonAronian won by resignation"]

1. d4 {[%clk 0:03:00.9]} 1... Nf6 {[%clk 0:02:59.4]} 2. c4 {[%clk 0:03:00.7]}
2... g6 {[%clk 0:02:59.8]} 3. Nc3 {[%clk 0:03:00.8]} 3... Bg7 {[%clk 0:03:00.4]}
4. e4 {[%clk 0:03:00.2]} 4... O-O {[%clk 0:03:01.1]} 5. Nf3 {[%clk 0:02:59.5]}
5... d6 {[%clk 0:03:01.2]} 6. Be2 {[%clk 0:02:59.6]} 6... e5 {[%clk 0:02:59.7]}
7. dxe5 {[%clk 0:02:59.9]} 7... dxe5 {[%clk 0:02:59.7]} 8. Qxd8 {[%clk
0:03:00.8]} 8... Rxd8 {[%clk 0:02:59.8]} 9. Bg5 {[%clk 0:03:01.6]} 9... Na6
{[%clk 0:02:37.5]} 10. Nxe5 {[%clk 0:02:44.2]} 10... Re8 {[%clk 0:02:26.4]} 11.
f4 {[%clk 0:02:22.2]} 11... Nc5 {[%clk 0:02:24.7]} 12. Bf3 {[%clk 0:01:52.6]}
12... Ne6 {[%clk 0:02:13.9]} 13. Bxf6 {[%clk 0:01:49]} 13... Bxf6 {[%clk
0:02:14.4]} 14. Nd3 {[%clk 0:01:48.8]} 14... Nd4 {[%clk 0:02:06.9]} 15. O-O-O
{[%clk 0:01:41.4]} 15... c6 {[%clk 0:01:52.7]} 16. e5 {[%clk 0:01:34.2]} 16...
Be7 {[%clk 0:01:52.4]} 17. Ne4 {[%clk 0:01:20.8]} 17... Bf5 {[%clk 0:01:52]} 18.
c5 {[%clk 0:01:13.9]} 18... Bxe4 {[%clk 0:01:28.7]} 19. Bxe4 {[%clk 0:01:14.8]}
19... Ne6 {[%clk 0:01:28.7]} 20. b4 {[%clk 0:01:09]} 20... Red8 {[%clk
0:01:24.1]} 21. g3 {[%clk 0:00:42.9]} 21... Rd4 {[%clk 0:01:23.3]} 22. Rhe1
{[%clk 0:00:32.7]} 22... a5 {[%clk 0:01:22.8]} 23. b5 {[%clk 0:00:31.1]} 23...
cxb5 {[%clk 0:01:17.7]} 24. Bxb7 {[%clk 0:00:30.1]} 24... Rad8 {[%clk
0:01:18.3]} 25. Nb2 {[%clk 0:00:23.4]} 25... Bxc5 {[%clk 0:01:16]} 26. Rxd4
{[%clk 0:00:16.6]} 26... Bxd4 {[%clk 0:01:15.8]} 27. Ba6 {[%clk 0:00:13.5]}
27... Nc5 {[%clk 0:01:13.8]} 28. Bxb5 {[%clk 0:00:11.4]} 28... Rb8 {[%clk
0:01:14.1]} 29. a4 {[%clk 0:00:10.9]} 29... Bxb2+ {[%clk 0:01:13.9]} 30. Kxb2
{[%clk 0:00:10.8]} 30... Nd3+ {[%clk 0:01:14.5]} 0-1

[Event "Late-Titled-Tuesday-Blitz-September-12-2023"]
[Site "Chess.com"]
[Date "2023.09.12"]
[Round "1"]
[White "Alphafischer2019"]
[Black "WilliamAlfaroCaracas"]
[Result "1-0"]
[WhiteElo "2564"]
[BlackElo "2269"]
[TimeControl "180+1"]
[EndTime "14:05:49 PDT"]
[Termination "Alphafischer2019 won on time"]

1. Nf3 {[%clk 0:03:00.1]} 1... g6 {[%clk 0:02:59.1]} 2. e4 {[%clk 0:02:58.2]}
2... Bg7 {[%clk 0:02:50.2]} 3. d4 {[%clk 0:02:58.1]} 3... c5 {[%clk 0:02:50.3]}
4. dxc5 {[%clk 0:02:57.3]} 4... Qa5+ {[%clk 0:02:48.7]} 5. Bd2 {[%clk
0:02:55.2]} 5... Qxc5 {[%clk 0:02:49.1]} 6. Bc3 {[%clk 0:02:54.6]} 6... Nf6
{[%clk 0:02:40.9]} 7. Nbd2 {[%clk 0:02:52.5]} 7... O-O {[%clk 0:02:32.5]} 8. Bd3
{[%clk 0:02:49.5]} 8... Nc6 {[%clk 0:02:31]} 9. O-O {[%clk 0:02:47.6]} 9... d6
{[%clk 0:02:29.5]} 10. h3 {[%clk 0:02:43.3]} 10... a6 {[%clk 0:02:19.5]} 11. Re1
{[%clk 0:02:35.7]} 11... b5 {[%clk 0:02:16.6]} 12. a3 {[%clk 0:02:36.2]} 12...
Nd7 {[%clk 0:02:01.1]} 13. Nb3 {[%clk 0:02:30.7]} 13... Qb6 {[%clk 0:01:58.9]}
14. Bxg7 {[%clk 0:02:29.6]} 14... Kxg7 {[%clk 0:01:58.7]} 15. h4 {[%clk
0:02:28.6]} 15... h5 {[%clk 0:01:55.7]} 16. Qd2 {[%clk 0:02:26.7]} 16... Nce5
{[%clk 0:01:51.3]} 17. Nbd4 {[%clk 0:02:23.2]} 17... Nxd3 {[%clk 0:01:36.7]} 18.
cxd3 {[%clk 0:02:12.2]} 18... Ne5 {[%clk 0:01:14.3]} 19. b4 {[%clk 0:02:09.1]}
19... Bg4 {[%clk 0:01:04.7]} 20. Qb2 {[%clk 0:02:01.3]} 20... Kg8 {[%clk
0:01:00.9]} 21. Nxe5 {[%clk 0:01:59.1]} 21... dxe5 {[%clk 0:01:00.8]} 22. Nb3
{[%clk 0:01:59.8]} 22... Qd6 {[%clk 0:00:50.2]} 23. Nc5 {[%clk 0:01:58.1]} 23...
Qd4 {[%clk 0:00:40.3]} 24. Qxd4 {[%clk 0:01:46.3]} 24... exd4 {[%clk 0:00:40.1]}
25. Rec1 {[%clk 0:01:38.8]} 25... Rfc8 {[%clk 0:00:39.3]} 26. f3 {[%clk
0:01:38.1]} 26... Be6 {[%clk 0:00:35.5]} 27. Kf2 {[%clk 0:01:37.7]} 27... Kg7
{[%clk 0:00:09.3]} 28. Kg3 {[%clk 0:01:37.2]} 28... Rc6 {[%clk 0:00:04.5]} 29.
Kf4 {[%clk 0:01:36.1]} 29... Bc8 {[%clk 0:00:03.2]} 30. Ke5 {[%clk 0:01:35.5]}
30... f6+ {[%clk 0:00:02.4]} 31. Kxd4 {[%clk 0:01:35.6]} 31... Ra7 {[%clk
0:00:02]} 32. Ke3 {[%clk 0:01:35.8]} 32... Rac7 {[%clk 0:00:01.6]} 33. d4 {[%clk
0:01:36.7]} 33... e5 {[%clk 0:00:01.2]} 34. d5 {[%clk 0:01:37.1]} 34... Rd6
{[%clk 0:00:01.6]} 35. Ne6+ {[%clk 0:01:37.4]} 1-0

[Event "Late-Titled-Tuesday-Blitz-September-12-2023"]
[Site "Chess.com"]
[Date "2023.09.12"]
[Round "1"]
[White "Dr_crypt"]
[Black "kingofthenil"]
[Result "0-1"]
[WhiteElo "2428"]
[BlackElo "2787"]
[TimeControl "180+1"]
[EndTime "14:05:50 PDT"]
[Termination "kingofthenil won by resignation"]

1. d4 {[%clk 0:02:51]} 1... Nf6 {[%clk 0:02:58.5]} 2. Nf3 {[%clk 0:02:51]} 2...
g6 {[%clk 0:02:59.2]} 3. c4 {[%clk 0:02:51.4]} 3... Bg7 {[%clk 0:02:59.3]} 4.
Nc3 {[%clk 0:02:51.2]} 4... d5 {[%clk 0:03:00]} 5. Bg5 {[%clk 0:02:51.5]} 5...
O-O {[%clk 0:02:59.1]} 6. Bxf6 {[%clk 0:02:50.7]} 6... Bxf6 {[%clk 0:02:59.5]}
7. cxd5 {[%clk 0:02:51.2]} 7... c6 {[%clk 0:02:56.1]} 8. e3 {[%clk 0:02:49.7]}
8... cxd5 {[%clk 0:02:56.1]} 9. Bd3 {[%clk 0:02:47.6]} 9... Bg4 {[%clk
0:02:54.1]} 10. h3 {[%clk 0:02:47.4]} 10... Bxf3 {[%clk 0:02:54.4]} 11. Qxf3
{[%clk 0:02:48.3]} 11... e6 {[%clk 0:02:55.1]} 12. O-O {[%clk 0:02:48.8]} 12...
Nc6 {[%clk 0:02:55.3]} 13. Rfd1 {[%clk 0:02:45]} 13... Rc8 {[%clk 0:02:51.2]}
14. Rac1 {[%clk 0:02:43.3]} 14... Kg7 {[%clk 0:02:51]} 15. a3 {[%clk 0:02:39.5]}
15... Na5 {[%clk 0:02:50]} 16. Na4 {[%clk 0:02:25]} 16... b6 {[%clk 0:01:44.3]}
17. Ba6 {[%clk 0:02:20.2]} 17... Rxc1 {[%clk 0:01:38.8]} 18. Rxc1 {[%clk
0:02:20.7]} 18... Qd7 {[%clk 0:01:39.7]} 19. Qd1 {[%clk 0:02:20.7]} 19... Rd8
{[%clk 0:01:16]} 20. b4 {[%clk 0:02:19.9]} 20... Nc4 {[%clk 0:01:14.5]} 21. Bxc4
{[%clk 0:02:16.9]} 21... dxc4 {[%clk 0:01:14.9]} 22. Rxc4 {[%clk 0:02:16.7]}
22... e5 {[%clk 0:01:15.1]} 23. d5 {[%clk 0:01:54.7]} 23... Qb5 {[%clk
0:01:11.4]} 24. Rc7 {[%clk 0:01:41.1]} 24... Rxd5 {[%clk 0:00:54.9]} 25. Qc2
{[%clk 0:01:38.8]} 25... Qd3 {[%clk 0:00:42.4]} 26. Qxd3 {[%clk 0:01:00.2]}
26... Rxd3 {[%clk 0:00:43.3]} 27. Nc3 {[%clk 0:00:52.9]} 27... e4 {[%clk
0:00:42.4]} 28. Nxe4 {[%clk 0:00:51.8]} 28... Rd1+ {[%clk 0:00:42.5]} 29. Kh2
{[%clk 0:00:48.5]} 29... Be5+ {[%clk 0:00:43.4]} 0-1

[Event "Late-Titled-Tuesday-Blitz-September-12-2023"]
[Site "Chess.com"]
[Date "2023.09.12"]
[Round "1"]
[White "mishanick"]
[Black "Emp3rador"]
[Result "1-0"]
[WhiteElo "3063"]
[BlackElo "2500"]
[TimeControl "180+1"]
[EndTime "14:05:54 PDT"]
[Termination "mishanick won on time"]

1. d4 {[%clk 0:03:00.5]} 1... d5 {[%clk 0:02:59.9]} 2. c4 {[%clk 0:03:00.1]}
2... c6 {[%clk 0:03:00.2]} 3. Nf3 {[%clk 0:02:59.7]} 3... Nf6 {[%clk 0:03:00.6]}
4. Nc3 {[%clk 0:02:59.1]} 4... dxc4 {[%clk 0:03:00.9]} 5. a4 {[%clk 0:02:58.9]}
5... Bf5 {[%clk 0:03:00.1]} 6. Ne5 {[%clk 0:02:56.7]} 6... e6 {[%clk 0:03:00.5]}
7. e3 {[%clk 0:02:54.8]} 7... Nbd7 {[%clk 0:02:58.7]} 8. Nxc4 {[%clk 0:02:53.2]}
8... a5 {[%clk 0:02:58.2]} 9. Be2 {[%clk 0:02:45.5]} 9... Bb4 {[%clk 0:02:56.5]}
10. O-O {[%clk 0:02:45]} 10... O-O {[%clk 0:02:56.9]} 11. Bd2 {[%clk 0:02:44.2]}
11... Qe7 {[%clk 0:02:55.5]} 12. Qb3 {[%clk 0:02:41.5]} 12... e5 {[%clk
0:02:51.4]} 13. Rfe1 {[%clk 0:02:25.6]} 13... Rfe8 {[%clk 0:02:26.9]} 14. Rad1
{[%clk 0:02:15.6]} 14... e4 {[%clk 0:01:45.7]} 15. h3 {[%clk 0:02:08.6]} 15...
Rab8 {[%clk 0:00:59.7]} 16. Na2 {[%clk 0:01:53.1]} 16... Bxd2 {[%clk 0:00:45.8]}
17. Rxd2 {[%clk 0:01:54]} 17... b6 {[%clk 0:00:44.7]} 18. Rc1 {[%clk 0:01:50.2]}
18... Nd5 {[%clk 0:00:39.2]} 19. Ne5 {[%clk 0:01:35.6]} 19... Nxe5 {[%clk
0:00:26.3]} 20. dxe5 {[%clk 0:01:36.5]} 20... Bd7 {[%clk 0:00:20.9]} 21. Nc3
{[%clk 0:01:25.8]} 21... Qxe5 {[%clk 0:00:13.5]} 22. Nxd5 {[%clk 0:01:15.5]}
22... cxd5 {[%clk 0:00:10.5]} 23. Rxd5 {[%clk 0:01:15.4]} 23... Bxa4 {[%clk
0:00:05.6]} 24. Qa2 {[%clk 0:01:09]} 24... Qe6 {[%clk 0:00:03.8]} 25. Bg4 {[%clk
0:01:09.5]} 1-0

[Event "Late-Titled-Tuesday-Blitz-September-12-2023"]
[Site "Chess.com"]
[Date "2023.09.12"]
[Round "1"]
[White "MagnusCarlsen"]
[Black "HajiyevKanan"]
[Result "1-0"]
[WhiteElo "3217"]
[BlackElo "2513"]
[TimeControl "180+1"]
[EndTime "14:05:56 PDT"]
[Termination "MagnusCarlsen won by resignation"]

1. e4 {[%clk 0:02:57.6]} 1... c6 {[%clk 0:02:57.6]} 2. d4 {[%clk 0:02:57]} 2...
d5 {[%clk 0:02:58.5]} 3. exd5 {[%clk 0:02:55.9]} 3... cxd5 {[%clk 0:02:59.1]} 4.
Bd3 {[%clk 0:02:56.6]} 4... Nc6 {[%clk 0:02:58.7]} 5. c3 {[%clk 0:02:55.9]} 5...
Qc7 {[%clk 0:02:59.1]} 6. h3 {[%clk 0:02:55.3]} 6... Nf6 {[%clk 0:02:59.7]} 7.
Nf3 {[%clk 0:02:55.4]} 7... g6 {[%clk 0:03:00.4]} 8. O-O {[%clk 0:02:55.7]} 8...
Bg7 {[%clk 0:03:00.9]} 9. Re1 {[%clk 0:02:56.1]} 9... O-O {[%clk 0:03:00.5]} 10.
Nbd2 {[%clk 0:02:56]} 10... Bf5 {[%clk 0:02:59.4]} 11. Bf1 {[%clk 0:02:56.7]}
11... Ne4 {[%clk 0:02:56.9]} 12. Nb3 {[%clk 0:02:53]} 12... Rfe8 {[%clk
0:02:46.1]} 13. Be3 {[%clk 0:02:50.8]} 13... h6 {[%clk 0:02:37.9]} 14. Qc1
{[%clk 0:02:46.7]} 14... Kh7 {[%clk 0:02:37.6]} 15. Bf4 {[%clk 0:02:46.8]} 15...
e5 {[%clk 0:02:15.2]} 16. dxe5 {[%clk 0:02:46.9]} 16... Nxe5 {[%clk 0:02:15.9]}
17. Nbd4 {[%clk 0:02:47.3]} 17... Nxf3+ {[%clk 0:02:07]} 18. gxf3 {[%clk
0:02:45.3]} 18... Nd6 {[%clk 0:01:23.7]} 19. Nb5 {[%clk 0:02:44]} 19... Nxb5
{[%clk 0:01:11.6]} 20. Rxe8 {[%clk 0:02:40.3]} 20... Rxe8 {[%clk 0:00:55.6]} 21.
Bxc7 {[%clk 0:02:39.7]} 21... Nxc7 {[%clk 0:00:56.5]} 22. Qf4 {[%clk 0:02:39.6]}
22... Be5 {[%clk 0:00:48.1]} 23. Qb4 {[%clk 0:02:36.8]} 23... Bc8 {[%clk
0:00:40.2]} 24. Re1 {[%clk 0:02:31.6]} 24... Bh2+ {[%clk 0:00:34.5]} 25. Kxh2
{[%clk 0:02:31.8]} 25... Rxe1 {[%clk 0:00:35.1]} 26. Qc5 {[%clk 0:02:31.4]}
26... Rxf1 {[%clk 0:00:28.4]} 27. Qxc7 {[%clk 0:02:31.4]} 27... Be6 {[%clk
0:00:20.7]} 28. Kg2 {[%clk 0:02:31.6]} 28... Ra1 {[%clk 0:00:20.3]} 29. a3
{[%clk 0:02:31.2]} 29... b5 {[%clk 0:00:18.2]} 30. Qxa7 {[%clk 0:02:31]} 30...
Rb1 {[%clk 0:00:17.2]} 31. Qb6 {[%clk 0:02:22.4]} 31... Rxb2 {[%clk 0:00:16.4]}
32. a4 {[%clk 0:02:23.1]} 32... Rb3 {[%clk 0:00:07.6]} 33. axb5 {[%clk
0:02:17.2]} 33... Rxc3 {[%clk 0:00:08.1]} 34. Qa7 {[%clk 0:02:12]} 34... Rb3
{[%clk 0:00:07.3]} 35. b6 {[%clk 0:02:12.3]} 35... d4 {[%clk 0:00:05.7]} 36. b7
{[%clk 0:02:12.5]} 36... Bd5 {[%clk 0:00:03.4]} 37. b8=Q {[%clk 0:02:12.5]}
37... Rxb8 {[%clk 0:00:03.9]} 38. Qxb8 {[%clk 0:02:12.6]} 38... Be6 {[%clk
0:00:04.2]} 39. Qd6 {[%clk 0:02:12.3]} 39... d3 {[%clk 0:00:03.6]} 40. Qxd3
{[%clk 0:02:12.7]} 40... h5 {[%clk 0:00:04.5]} 41. Qd4 {[%clk 0:02:12.7]} 41...
Kh6 {[%clk 0:00:04.8]} 42. Qh8+ {[%clk 0:02:10.6]} 42... Kg5 {[%clk 0:00:05.1]}
43. h4+ {[%clk 0:02:09.2]} 43... Kf5 {[%clk 0:00:05.6]} 44. Kg3 {[%clk
0:02:08.7]} 44... Bd5 {[%clk 0:00:04.2]} 45. Qd4 {[%clk 0:02:08.9]} 45... Ke6
{[%clk 0:00:05]} 46. Kf4 {[%clk 0:02:09]} 46... Bc6 {[%clk 0:00:05.6]} 47. Qe5+
{[%clk 0:02:08.6]} 47... Kd7 {[%clk 0:00:06.3]} 48. Qf6 {[%clk 0:02:09.1]} 48...
Bd5 {[%clk 0:00:05.8]} 49. Ke5 {[%clk 0:02:09.8]} 49... Be6 {[%clk 0:00:06.4]}
50. f4 {[%clk 0:02:10.3]} 50... Kc6 {[%clk 0:00:06.8]} 51. f5 {[%clk 0:02:10.5]}
51... gxf5 {[%clk 0:00:05]} 52. Qh6 {[%clk 0:02:11.4]} 52... Kc5 {[%clk
0:00:04.1]} 53. Qxh5 {[%clk 0:02:11.6]} 53... Kc4 {[%clk 0:00:04.6]} 54. Qg5
{[%clk 0:02:12]} 54... Kd3 {[%clk 0:00:05]} 55. Qe3+ {[%clk 0:02:12]} 55... Kc2
{[%clk 0:00:05.3]} 56. h5 {[%clk 0:02:12.1]} 1-0

[Event "Late-Titled-Tuesday-Blitz-September-12-2023"]
[Site "Chess.com"]
[Date "2023.09.12"]
[Round "1"]
[White "bascheyaro"]
[Black "Noki102"]
[Result "1-0"]
[WhiteElo "2821"]
[BlackElo "2437"]
[TimeControl "180+1"]
[EndTime "14:05:57 PDT"]
[Termination "bascheyaro won on time"]

1. d4 {[%clk 0:02:58.7]} 1... d5 {[%clk 0:00:15.7]} 2. c4 {[%clk 0:02:52]} 2...
e6 {[%clk 0:00:15.6]} 3. Nc3 {[%clk 0:02:52.1]} 3... Nf6 {[%clk 0:00:16]} 4. Bg5
{[%clk 0:02:51.9]} 4... c6 {[%clk 0:00:16]} 5. e3 {[%clk 0:02:52.2]} 5... Nbd7
{[%clk 0:00:16.2]} 6. Qc2 {[%clk 0:02:52.4]} 6... Qa5 {[%clk 0:00:16.4]} 7. Nf3
{[%clk 0:02:51.6]} 7... Ne4 {[%clk 0:00:11.8]} 8. cxd5 {[%clk 0:02:50.3]} 8...
exd5 {[%clk 0:00:08]} 9. Bd3 {[%clk 0:02:48.3]} 9... Nxg5 {[%clk 0:00:05.3]} 10.
Nxg5 {[%clk 0:02:48.2]} 10... h6 {[%clk 0:00:05.8]} 11. Nf3 {[%clk 0:02:43]}
11... Be7 {[%clk 0:00:06.1]} 12. O-O {[%clk 0:02:40.4]} 12... O-O {[%clk
0:00:06]} 13. a3 {[%clk 0:02:38.7]} 13... Nf6 {[%clk 0:00:05.9]} 14. Ne5 {[%clk
0:02:37.8]} 14... Be6 {[%clk 0:00:03.3]} 15. f4 {[%clk 0:02:37.8]} 15... Rfe8
{[%clk 0:00:02.7]} 16. h3 {[%clk 0:02:35.7]} 16... Bd6 {[%clk 0:00:03]} 17. b4
{[%clk 0:02:33]} 17... Qc7 {[%clk 0:00:02.6]} 18. Rac1 {[%clk 0:02:32.7]} 18...
Rad8 {[%clk 0:00:02.9]} 19. Nb5 {[%clk 0:02:31.5]} 19... Qb8 {[%clk 0:00:03.4]}
20. Nxd6 {[%clk 0:02:31.5]} 20... Qxd6 {[%clk 0:00:04.3]} 21. Qc5 {[%clk
0:02:31.5]} 21... Qxc5 {[%clk 0:00:04]} 22. bxc5 {[%clk 0:02:31.8]} 22... Bc8
{[%clk 0:00:04.6]} 23. a4 {[%clk 0:02:31.6]} 23... Nd7 {[%clk 0:00:04.2]} 24.
Kf2 {[%clk 0:02:25.9]} 24... Nxe5 {[%clk 0:00:04.2]} 25. fxe5 {[%clk 0:02:03.8]}
25... Re7 {[%clk 0:00:04.7]} 26. Ke2 {[%clk 0:02:01]} 26... a6 {[%clk
0:00:05.1]} 27. Kd2 {[%clk 0:02:00.1]} 27... Rf8 {[%clk 0:00:05]} 28. Rf3 {[%clk
0:01:59.1]} 28... f6 {[%clk 0:00:03.1]} 29. Rcf1 {[%clk 0:01:58.8]} 29... Ref7
{[%clk 0:00:02.6]} 30. exf6 {[%clk 0:01:59]} 30... Rxf6 {[%clk 0:00:02.9]} 31.
Rxf6 {[%clk 0:01:58.8]} 31... gxf6 {[%clk 0:00:03.5]} 32. Kc3 {[%clk 0:01:58.1]}
32... Kg7 {[%clk 0:00:04]} 33. Kb4 {[%clk 0:01:58.3]} 33... Re8 {[%clk
0:00:04.5]} 34. Rf3 {[%clk 0:01:57.9]} 34... Re7 {[%clk 0:00:03.5]} 35. Ka5
{[%clk 0:01:58.5]} 35... Bd7 {[%clk 0:00:02.9]} 36. Kb6 {[%clk 0:01:58.9]} 36...
Bc8 {[%clk 0:00:03.6]} 37. Rg3+ {[%clk 0:01:53.1]} 37... Kf7 {[%clk 0:00:04]}
38. Bg6+ {[%clk 0:01:53]} 38... Kf8 {[%clk 0:00:03.9]} 39. Bh5 {[%clk
0:01:45.1]} 1-0

[Event "Late-Titled-Tuesday-Blitz-September-12-2023"]
[Site "Chess.com"]
[Date "2023.09.12"]
[Round "1"]
[White "Chaos_Magic"]
[Black "SaqoChess_Twitch"]
[Result "0-1"]
[WhiteElo "2397"]
[BlackElo "2727"]
[TimeControl "180+1"]
[EndTime "14:06:02 PDT"]
[Termination "SaqoChess_Twitch won by checkmate"]

1. d4 {[%clk 0:03:00.9]} 1... d5 {[%clk 0:02:59.6]} 2. Nf3 {[%clk 0:03:00.3]}
2... e6 {[%clk 0:02:58.4]} 3. c4 {[%clk 0:03:00.4]} 3... Nf6 {[%clk 0:02:55]} 4.
e3 {[%clk 0:03:00.4]} 4... Be7 {[%clk 0:02:54.1]} 5. Nbd2 {[%clk 0:02:59.6]}
5... O-O {[%clk 0:02:54.4]} 6. Bd3 {[%clk 0:02:58.3]} 6... c5 {[%clk 0:02:54.8]}
7. O-O {[%clk 0:02:53.6]} 7... cxd4 {[%clk 0:02:55.1]} 8. Nxd4 {[%clk
0:02:53.1]} 8... Nc6 {[%clk 0:02:55.4]} 9. Nxc6 {[%clk 0:02:49]} 9... bxc6
{[%clk 0:02:56.3]} 10. b3 {[%clk 0:02:48.8]} 10... e5 {[%clk 0:02:54.3]} 11. Bb2
{[%clk 0:02:47.8]} 11... e4 {[%clk 0:02:53.6]} 12. Be2 {[%clk 0:02:47.8]} 12...
Be6 {[%clk 0:02:50.3]} 13. Qc2 {[%clk 0:02:44.5]} 13... a5 {[%clk 0:02:47.4]}
14. a3 {[%clk 0:02:39.7]} 14... h5 {[%clk 0:02:46.7]} 15. Rfd1 {[%clk
0:02:36.5]} 15... h4 {[%clk 0:02:45.9]} 16. h3 {[%clk 0:02:36.2]} 16... Qd7
{[%clk 0:02:39]} 17. Nf1 {[%clk 0:02:25.2]} 17... Rfc8 {[%clk 0:02:35.8]} 18.
Rac1 {[%clk 0:02:22.9]} 18... Qe8 {[%clk 0:02:34.8]} 19. Rd2 {[%clk 0:02:10.5]}
19... Qf8 {[%clk 0:02:34.8]} 20. Ra1 {[%clk 0:02:09.5]} 20... g5 {[%clk
0:02:33.6]} 21. Qc3 {[%clk 0:02:06.6]} 21... Qh6 {[%clk 0:02:30]} 22. Rc1 {[%clk
0:01:42.2]} 22... g4 {[%clk 0:02:30]} 23. hxg4 {[%clk 0:01:37.1]} 23... Nxg4
{[%clk 0:02:11.9]} 24. Bxg4 {[%clk 0:01:19.3]} 24... Bxg4 {[%clk 0:02:12.8]} 25.
Qe5 {[%clk 0:01:14.1]} 25... Be6 {[%clk 0:02:06.5]} 26. Rdc2 {[%clk 0:00:59.6]}
26... h3 {[%clk 0:01:49.1]} 27. gxh3 {[%clk 0:00:46]} 27... Kh7 {[%clk
0:01:43.2]} 28. cxd5 {[%clk 0:00:39.7]} 28... Rg8+ {[%clk 0:01:43]} 29. Ng3
{[%clk 0:00:39.2]} 29... cxd5 {[%clk 0:01:43]} 30. Rc7 {[%clk 0:00:29.4]} 30...
Bg5 {[%clk 0:01:40.5]} 31. Kf1 {[%clk 0:00:20.6]} 31... Bxe3 {[%clk 0:01:37.1]}
32. fxe3 {[%clk 0:00:16.5]} 32... Qxh3+ {[%clk 0:01:37.1]} 33. Ke2 {[%clk
0:00:13.8]} 33... Rxg3 {[%clk 0:01:34.6]} 34. Kd2 {[%clk 0:00:06.9]} 34... Rg2+
{[%clk 0:01:20]} 35. Kc3 {[%clk 0:00:06.5]} 35... Qxe3# {[%clk 0:01:19.8]} 0-1